Cogmind - Beta 16.1 @@@ ROGUE MODE // 2026.03.17 @ 19:42:06 Player: ILikeVoltron Result: Destroyed by G-47 Trooper with Particle Gun Performance ------------- Evolutions (1) 500 Regions Visited (3) 600 Robots Destroyed (40) 200 Value Destroyed (609) 609 Prototype IDs (2) 40 Alien Tech Used (0) 0 Bonus (0) 0 TOTAL SCORE: 1949 Bonus ------- None Cogmind --------- Core Integrity 0/400 Matter 300/300 Energy 100/100 System Corruption 0% Temperature Cool (9) Movement Core (700) Ox13 Location -9/Mines Parts ------- > --- POWER (1) -------- (None) > --- PROPULSION (4) --- (None) > --- UTILITY (2) ------ High-capacity Storage Unit > --- WEAPON (2) ------- (None) > --- INVENTORY (20) --- Heavy Ion Engine Medium Storage Unit Weight Redist. System Improved Terrain Scanner Seismic Detector Hardened Light Armor Plating Trap Extractor (0/4) Medium Laser Medium Laser Beam Rifle Light Assault Rifle Light Assault Rifle Autogun Autogun Shotgun Shotgun Light Cannon Improved Light Cannon Rocket Launcher Plasma Cutter Peak State ------------ > --- POWER ------------ Ion Engine > --- PROPULSION ------- Light Treads Light Treads Aluminum Leg Aluminum Leg > --- UTILITY ---------- Heat Sink High-capacity Storage Unit > --- WEAPON ----------- Autogun Autogun > --- INVENTORY -------- Ion Engine Heavy Ion Engine Aluminum Leg Improved Heat Sink Medium Storage Unit Weight Redist. System Improved Terrain Scanner Seismic Detector Medium Laser Medium Laser Medium Laser Medium Laser Beam Rifle Assault Rifle Light Assault Rifle Autogun Improved Light Cannon Rocket Launcher Plasma Cutter Hammer [Rating: 14] Favorites ----------- Power Ion Engine Engine Ion Engine Propulsion Aluminum Leg Treads Light Treads Leg Aluminum Leg Utility High-capacity Storage Unit Device Tractor Beam Storage High-capacity Storage Unit Weapon Light Assault Rifle Energy Gun Medium Laser Ballistic Gun Light Assault Rifle Ballistic Cannon Light Cannon Launcher Rocket Launcher Impact Weapon Hammer Build | -11 -10 -9 -9 ------- Run | Yrd Mat Mat Min Slots Evolved 2 | . . 2 . Power . | . . . . Propulsion 2 | . . 2 . Utility . | . . . . Weapon . | . . . . Parts Attached 26 | . 5 15 6 Power 2 | . . 1 1 Engine 2 | . . 1 1 Core . | . . . . Reactor . | . . . . Propulsion 8 | . . 8 . Treads 4 | . . 4 . Leg 4 | . . 4 . Wheel . | . . . . Hover . | . . . . Flight . | . . . . Utility 5 | . 1 3 1 Device 3 | . 1 1 1 Storage 2 | . . 2 . Processor . | . . . . Hackware . | . . . . Protection . | . . . . Artifact . | . . . . Weapon 11 | . 4 3 4 Energy Gun 2 | . . . 2 Energy Cannon . | . . . . Ballistic Gun 6 | . 3 3 . Ballistic Cannon 1 | . . . 1 Launcher 1 | . . . 1 Special Weapon . | . . . . Impact Weapon 1 | . 1 . . Slashing Weapon . | . . . . Piercing Weapon . | . . . . Special Melee Weapon . | . . . . Unidentified Prototypes . | . . . . Parts Lost 17 | . . 7 10 Power 3 | . . 1 2 Propulsion 8 | . . 5 3 Utility 3 | . . 1 2 Weapon 3 | . . . 3 Highest Loss Streak 5 | . . 2 5 To Critical Strikes . | . . . . Average Backups 14 | 7 7 15 19 Power 1 | 1 1 1 1 Propulsion 1 | 3 2 1 . Utility 3 | . 2 4 5 Weapon 7 | 1 2 7 12 Tool/Special . | . . . . Unused Backups 22 | . 3 3 16 Power 1 | . . . 1 Propulsion . | . . . . Utility 6 | . . 1 5 Weapon 14 | . 3 2 9 Tool/Special 1 | . . . 1 Average Slot Usage (%) 84 | . 95 91 66 Engine 10 | . 14 9 9 Treads 11 | . . 24 . Leg 18 | . 28 14 15 Device 9 | . 10 8 10 Storage 11 | . 14 11 11 Energy Gun 2 | . . . 7 Ballistic Gun 15 | . 22 19 4 Impact Weapon 3 | . 5 2 4 Peak Build Rating 14 | 7 8 14 13 Average Rating 10 | 6 7 11 10 On Entrance 8 | 6 7 8 13 Avg Prop Armor Cover (%) 8 | . . 8 . Naked Turns . | . . . . Heaviest Build 53 | 12 14 52 53 Greatest Support 80 | 20 20 80 30 Greatest Overweight (x) 15 | . . 1 15 Average Overweight (x) . | . . . 3 Largest Inventory Capacity 20 | 8 8 20 20 Average Capacity 16 | 8 8 18 20 Most Carried 20 | 8 8 20 20 Average Carried 14 | 7 7 15 19 Final Capacity 20 | 8 8 20 20 Final Carried 20 | 8 8 20 20 Class Distribution -------------------- 87% | Mutant 12% | Scavenger-Mutant Dominant Class ---------------- Mutant | -10/Materials Mutant | -9/Materials Mutant | -9/Mines Resources | -11 -10 -9 -9 ----------- Run | Yrd Mat Mat Min Matter Collected 912 | 228 84 500 100 Remotely 175 | . 74 101 . Salvage Created 1269 | 164 243 796 66 Parts 67 | 9 13 45 . Haulers Intercepted 1 | . . 1 . Recyclers Shooed 2 | . . 2 . Parts Field Recycled . | . . . . Retrieved Matter . | . . . . Parts Self-Destructed . | . . . . Prevented . | . . . . Parts Restored . | . . . . Kills | -11 -10 -9 -9 ------- Run | Yrd Mat Mat Min Combat Hostiles Destroyed 30 | . 5 20 5 Guns 24 | . 5 19 . AOE 4 | . . . 4 Classes Destroyed 10 | 2 4 2 2 Worker 5 | . 1 2 2 Builder 1 | . 1 . . Tunneler 3 | 3 . . . Hauler 1 | . . 1 . Recycler 4 | 1 1 2 . Swarmer 17 | . 3 14 . Grunt 4 | . 2 2 . Sentry 4 | . . 4 . Demolisher 1 | . . . 1 Assembled 4 | . . . 4 Best Kill Streak 8 | 2 2 8 4 Combat Bots Only 8 | . 2 8 4 Max Kills in Single Turn 4 | 1 1 2 4 Gunslinging 1 | . . 1 . Exploded 4 | . . . 4 Melee . | . . . . Uniques/NPCs Destroyed . | . . . . Combat | -11 -10 -9 -9 -------- Run | Yrd Mat Mat Min Hostile Shots Fired 218 | . 16 153 49 Missed 56 | . 4 43 9 Hits 162 | . 12 110 40 Projectile 162 | . 12 110 40 AOE 18 | . . . 18 Critical Strikes 3 | . . 2 1 Damage Taken 2207 | . 114 1172 921 Core 412 | . 8 160 244 Absorbed by Shields . | . . . . Core Remaining (%) 98 | 100 96 . . Volleys Fired 85 | 14 14 50 7 Largest 2 | 2 2 2 2 Hottest 100 | 40 40 46 100 Shots Fired 167 | 28 26 100 13 Gun 164 | 28 26 100 10 Cannon . | . . . . Launcher 3 | . . . 3 Special . | . . . . Kinetic 157 | 28 26 100 3 Thermal 7 | . . . 7 Explosive 3 | . . . 3 Electromagnetic . | . . . . Robot Hit Streak 13 | 4 7 13 5 Robot Miss Streak 3 | 3 2 3 1 Penetration Max . | . . . . Secondary Targets 2 | . . 2 . Max Gunslinging Chain 1 | . . 1 . Shots Hit Robots 127 | 15 20 79 13 Core Hits 59 | 8 9 31 11 Critical Kills . | . . . . Critical Parts Destroyed 5 | . . 4 1 Critical Strikes 7 | . . 4 3 Burn 2 | . . . 2 Destroy 2 | . . 2 . Smash 3 | . . 2 1 Melee Attacks 42 | . 17 23 2 Impact 42 | . 17 23 2 Slashing . | . . . . Piercing . | . . . . Sneak Attacks 5 | . 3 . 2 Combat Hostiles . | . . . . Follow-up Attacks . | . . . . Damage Inflicted 2211 | 129 292 1227 563 Guns 1303 | 129 132 930 112 Cannons . | . . . . Explosions 343 | . . . 343 Melee 565 | . 160 297 108 Ramming . | . . . . Kinetic 1225 | 129 132 930 34 Thermal 78 | . . . 78 Explosive 343 | . . . 343 Electromagnetic . | . . . . Impact 565 | . 160 297 108 Slashing . | . . . . Piercing . | . . . . Highest Corruption . | . . . . Average Corruption . | . . . . Corruption Purged . | . . . . Corruption Blocked . | . . . . Overload Shots . | . . . . Overflow Damage 217 | . 48 47 122 Projectiles . | . . . . Explosions 54 | . . . 54 Melee 163 | . 48 47 68 Knockbacks 1 | . . . 1 Impact 1 | . . . 1 Kinetic . | . . . . Secondary . | . . . . Self-Inflicted Damage . | . . . . Shots . | . . . . Rammed . | . . . . Targets Rammed . | . . . . Kicked . | . . . . Crushed . | . . . . Highest Temperature 65 | . 12 6 65 Average Temperature 28 | . 7 6 39 Received Heat Transfer 491 | . 36 234 221 Siege Activations . | . . . . Martial Activations . | . . . . Shielding Activations . | . . . . Robots Disrupted . | . . . . Combat Hostiles . | . . . . Robots Corrupted 4 | . 1 1 2 Combat Hostiles 1 | . . 1 . Parts Fried 7 | . 5 . 2 Impact Corruptions 8 | . 2 3 3 Robots Melted 1 | . . . 1 Combat Hostiles 1 | . . . 1 Parts Melted . | . . . . Heat Transferred 370 | . . . 370 Parts Sabotaged . | . . . . Parts Stolen . | . . . . Parts Stripped . | . . . . Power Chain Reactions . | . . . . Alert | -11 -10 -9 -9 ------- Run | Yrd Mat Mat Min Maximum Alert Level 1 | . . 1 . Low Security (%) 89 | 100 100 75 100 Level 1 10 | . . 24 . Level 2 . | . . . . Level 3 . | . . . . Level 4 . | . . . . Level 5 . | . . . . High Security . | . . . . Max Security . | . . . . Peak Influence 291 | 10 89 291 100 Initial 100 | . . 28 100 Average 63 | 1 30 117 18 Influence Increases 831 | 20 164 587 60 Destroy 0b10 Robot/C 520 | . 100 400 20 Destroy 0b10 Robot/NC 70 | 20 15 25 10 Destroy Leader 112 | . 20 92 . Successful Hack 29 | . 7 22 . Destroy Structure 25 | . 7 3 15 Lose Combat Pursuer 75 | . 15 45 15 Influence Decreases 826 | 20 95 397 314 Entered New Map 200 | . . 41 159 Time Decay 471 | 20 95 286 70 Lost Part 95 | . . 70 25 Lost Ally 60 | . . . 60 Squads Dispatched 2 | . 1 1 . Investigation . | . . . . Extermination . | . . . . Reinforcement 2 | . 1 1 . Assault . | . . . . Garrison . | . . . . Intercept . | . . . . Searches Triggered . | . . . . Construction Impeded . | . . . . Haulers Reinforced . | . . . . Active Scanning Responses . | . . . . Cargo Convoy Interrupts . | . . . . Stealth | -11 -10 -9 -9 --------- Run | Yrd Mat Mat Min Distress Signals 2 | . . 1 1 Communications Jammed . | . . . . Distress Signals . | . . . . Times Spotted 56 | . 7 31 18 Peak Tracking Total 8 | . 3 6 8 Tactical Retreats 5 | . 1 3 1 Traps | -11 -10 -9 -9 ------- Run | Yrd Mat Mat Min Traps Triggered . | . . . . Indirectly . | . . . . Trap Hack Attempts . | . . . . Triggered . | . . . . Disarmed . | . . . . Reprogrammed . | . . . . Reused . | . . . . Traps Extracted . | . . . . Installed . | . . . . Triggered . | . . . . Machines | -11 -10 -9 -9 ---------- Run | Yrd Mat Mat Min Machines Disabled . | . . . . Max in Single Turn . | . . . . Machines Repaired . | . . . . Machines Dismantled . | . . . . Machines Sabotaged . | . . . . Overloaded Fab Kills . | . . . . Hacking | -11 -10 -9 -9 --------- Run | Yrd Mat Mat Min Machines Accessed 6 | . 2 4 . Terminals 4 | . 1 3 . Fabricators . | . . . . Repair Stations . | . . . . Recycling Units 1 | . 1 . . Scanalyzers 1 | . . 1 . Garrison Access . | . . . . Total Hacks 14 | . 4 10 . Successful 11 | . 3 8 . Failed 2 | . 1 1 . Catastrophic . | . . . . Database Lockouts 1 | . . 1 . Manual 1 | . . 1 . Terminals 7 | . 1 6 . Fabricators . | . . . . Repair Stations . | . . . . Recycling Units 3 | . 3 . . Scanalyzers 4 | . . 4 . Garrison Access . | . . . . Terminal Hacks 6 | . 1 5 . Prototype ID Bank 1 | . . 1 . Emergency Access Points 1 | . . 1 . Alert Level 1 | . . 1 . Locate Traps 1 | . . 1 . Security Status 1 | . 1 . . Zone Layout 1 | . . 1 . Fabricator Hacks . | . . . . Repair Station Hacks . | . . . . Recycling Unit Hacks 2 | . 2 . . Report Inventory 1 | . 1 . . Retrieve Components 1 | . 1 . . Scanalyzer 3 | . . 3 . Retrieve Study 3 | . . 3 . Garrison Access Hacks . | . . . . Unauthorized Hacks . | . . . . Terminals . | . . . . Fabricators . | . . . . Repair Stations . | . . . . Recycling Units . | . . . . Scanalyzers . | . . . . Garrison Access . | . . . . Data Cores Recovered . | . . . . Used . | . . . . Hacking Detections 3 | . . 3 . Full Trace Events 1 | . . 1 . Feedback Events . | . . . . Feedback Blocked . | . . . . Robot Schematics Acquired . | . . . . Robots Built . | . . . . Authchips . | . . . . Time . | . . . . Total Robot Build Rating . | . . . . Part Schematics Acquired . | . . . . Parts Built . | . . . . Authchips . | . . . . Time . | . . . . Total Part Build Rating . | . . . . Part Studies Acquired 3 | . . 3 . Parts Repaired . | . . . . Time . | . . . . Parts Recycled . | . . . . Recycled Matter . | . . . . Retrieved Matter . | . . . . Retrieved Components 1 | . 1 . . Parts Scanalyzed . | . . . . Part Schematics Acquired . | . . . . Parts Damaged . | . . . . Bothacking | -11 -10 -9 -9 ------------ Run | Yrd Mat Mat Min Used RIF Installer . | . . . . Robots Hacked . | . . . . Non-combat . | . . . . Combat . | . . . . Robot Hacks Applied . | . . . . Relay Couplers Released . | . . . . Fabnet Peak Effective % . | . . . . Robots Rewired . | . . . . Allies Hacked . | . . . . Hacks Repelled . | . . . . Allies | -11 -10 -9 -9 -------- Run | Yrd Mat Mat Min Total Allies 3 | . . . 3 Largest Group 3 | . . . 3 Highest-Rated Group 40 | . . . 40 Highest-Rated Ally 16 | . . . 16 Total Orders . | . . . . Ally Attacks 5 | . . . 5 Total Damage 20 | . . . 20 Kills 1 | . . . 1 Allies Corrupted . | . . . . Allies Melted . | . . . . Intel | -11 -10 -9 -9 ------- Run | Yrd Mat Mat Min Active Infowar (turns) . | . . . . Robot Analysis Total . | . . . . Derelict Logs Recovered . | . . . . Drone Launches . | . . . . Drone Recoveries . | . . . . Exploration | -11 -10 -9 -9 ------------- Run | Yrd Mat Mat Min Turns Passed 1436 | 81 317 623 415 Spaces Moved 542 | 19 179 230 114 Core 5 | . . . 5 Treads 120 | . . 120 . Legs 417 | 19 179 110 109 Wheels . | . . . . Hover . | . . . . Flight . | . . . . Fastest Speed 120 | 120 120 120 175 Average Speed 182 | 120 120 167 322 Slowest Speed 800 | 120 120 240 800 Overloaded Moves . | . . . . Propulsion Burnouts . | . . . . Robots Hopped . | . . . . Potential Cave-ins . | . . . . Cave-ins Triggered . | . . . . Exploration Rate (%) 28 | 4 47 31 32 Regions Visited 3 Branch Regions 1 Pre-discovered Areas . | . . . . Known Exits Taken . | . . . . Unknown Exits Taken 3 | 1 1 1 . Scrap Searched 1 | . . . 1 Spaces Dug 9 | . 7 2 . Terrain Destroyed 30 | . 7 2 21 Melee 9 | . 7 2 . Projectile . | . . . . AOE 21 | . . . 21 Terrain Rammed . | . . . . Walls Destroyed . | . . . . Machines Disabled . | . . . . Actions | -11 -10 -9 -9 --------- Run | Yrd Mat Mat Min Total 780 | 55 230 350 145 Wait 42 | 19 8 4 11 Move 539 | 18 178 229 114 Hop . | . . . . Pick Up 28 | 3 2 20 3 Fast Attach 6 | . 1 4 1 Attach 7 | . . 5 2 Detach 1 | . . 1 . Swap 17 | . 6 7 4 Drop 13 | 1 4 7 1 Fire 85 | 14 14 50 7 Melee 42 | . 17 23 2 Ram . | . . . . Kick . | . . . . Crush . | . . . . Escape Stasis . | . . . . Rewire . | . . . . Trap . | . . . . Miscellaneous . | . . . . Route ------- -11/Scrapyard -10/Materials (discovered 2 exits: *Mat / [*Min]) -9/Materials -9/Mines (discovered 1 exit: [*Mat]) History --------- Turn | Location | Event 20 | -11/Scrapyard | Discovered new exit (range 3) 82 | -11/Scrapyard | Entered Materials 219 | -10/Materials | Discovered new exit (range 15) 322 | -10/Materials | Build established: Mutant 370 | -10/Materials | Discovered new exit (range 10) 399 | -10/Materials | Entered another Materials area 399 | -9/Materials | Evolved 2 slots: Propulsion x2 577 | -9/Materials | Central database locked down 907 | -9/Materials | Destroyed 8 combat bots 924 | -9/Materials | Discovered new exit (range 15) 1022 | -9/Materials | Entered Mines 1033 | -9/Mines | Assisted by bots powering up and referring to "LRC-V3" 1071 | -9/Mines | Assembled infested the area 1107 | -9/Mines | Core integrity fell below 50% 1135 | -9/Mines | Lost 3 allies 1152 | -9/Mines | Lost 5 parts (1p2n1u1w) 1275 | -9/Mines | Discovered new exit (range 5) 1412 | -9/Mines | Core integrity fell below 20% 1437 | -9/Mines | Destroyed by G-47 Trooper with Particle Gun Last Messages --------------- 01246_ Destroyed Wheel. 01246_ Destroyed Sml. Matter Pod. 01246_ K-01 Serf system corrupted by crushing effect. 01246_ K-01 Serf knocked back. 01247_ K-01 Serf system terminally corrupted. 01247_ Lgt. Ion Engine fried. 01275_ EXIT=FOUND 01346_ A derelict is hurriedly installing traps. 01348_ MO-1L6(g): "Hehe, this'll put a wrench in their mining defense operations..." 01348_ MO-1L6(g) slips into the shadows. 01387_ C-30 ARC bursts open, deploying its payload. 01387_ G-47 Trooper unfolds itself. 01387_ G-34 Mercenary unfolds itself. 01394_ Aluminum Leg+ destroyed. 01400_ Med. Laser destroyed. 01402_ Lgt. Ion Engine destroyed. 01409_ Hammer+ destroyed. 01411_ Critical hit (Burn: +37). 01421_ G-34 Mercenary destroyed. 01435_ Imp. Heat Sink destroyed. Map ----- +----------------------------------------------------+ | ??????????????????????????????????? | | ??????????????????????????????????? | | ??????????????????????????????????? | | ??????????????????????????????????? | | ??????????????????????????????????? | | ??????????????????????????????????? | | ????????????????????????? #??????? | | ???????????????????????? ??????? | | ?????????????????????? #?????? | | ????????????????????? ##????? | | ????????????????# ? ? #????? | | ????????????????? ? #????? | | ?????????????????# ? ##???? | | ?????????????????# % ###?? | | ????????????????## ? ##? | | ???????????????## ;; #? | | ???????????????# ; = #? | | ???????????????# # ;%[ #? | | ????????????????# # ; #?? | | ?????????????????# ^ ^ #?? | | ??????????????????# #?? | | ??????????????????# #?? | | ??????????????????# g ## #??? | | ??????????????????## ######??? | | ??????????????????### ## #???????? | | ?????????????????? ##@#???????? | | ????????????????# ### ## #???????? | | ????????????????????# ## #???????? | | ????????????????????# #???????? | | ????????????????????# ####???????? | | ????????????????????# #??????????? | | ????????????????????# #??????????? | | ????????????????????# #??????????? | | ????????????????????# #??????????? | | ????????????????????# #??????????? | | ????????????????????# #??????????? | | ???????????????###### ###????????? | | ???????????????# #????????? | | ???????????????# #????????? | | ???????????????# #????????? | | ???????????????# < #????????? | | ???????????????# #????????? | | ???????????????# #????????? | | ???????????????## ########????????? | | ????????????????# #???????????????? | | ????????????????# #???????????????? | | ????????????????# #???????????????? | | ????????????????# #???????????????? | | ????????????????#%#???????????????? | | ##??????????????# #???????????????? | +----------------------------------------------------+ Best States ------------- Heat Dissipation 42 Energy Generation 10 Energy Capacity 250 Matter Stores 300 Matter Capacity 300 Sight Range 16 Terrain Scan Density 10 Evasion (%) 55 Recoil Reduction 4 Item Schematics ----------------- None Robot Schematics ------------------ None Fabricated ------------ Nothing Repaired ---------- Nothing Studied --------- Hammer | -9/Materials | Hacked Rocket Launcher | -9/Materials | Hacked Aluminum Leg | -9/Materials | Hacked Alien Tech Used ----------------- None Achievements -------------- None Challenges ------------ None Game ------ Seed BiomechanicalMultinovaDrive Manual? 0 Play Time 00:17:59 Cumulative 202.2 hours Start 2026.03.15 @ 14:52:10 End 2026.03.17 @ 19:42:06 Sessions 3 Manual Loads 0 Difficulty Rogue Special Mode None Game No. 329 Rogue 325 Adventurer 0 Explorer 4 Win Type - Total 0 Types 0/0/0/0/0/0/0/0/0/0 Lore% 33 Gallery% 43 Achievement% 31 Wizard Run 0 Options --------- Layout 0 ASCII 0 Keyboard 1 Movement Arrows Keybinds 0 Fullscreen 1 Font 24/Smallcaps Map View 183x50 Zoom Use 0% Tactical HUD 1 Map Filters NONE Filters NONE Steam 1 RUN: c6fbd404-00ac-40de-b779-029eace66f10